bitfinex-derivatives/quotes_ETHF0:USTF0_20251226
["timestamp","ask_amount","ask_price","bid_price","bid_amount"]
[1766770623327,0.0051,2925.7,2924.9,2.96e-05]
[1766770644148,0.17615,2925.7,2924.1,3.11754338]
[1766770644453,0.90739475,2925.2,2923.9,1.46574286]
[1766770646256,0.90739475,2925.2,2924.3,0.0051296]
[1766770646854,0.90739475,2925.2,2923.5,0.12109813]
[1766770647054,0.17109,2925.1,2923.5,0.12109813]
[1766770647955,0.17109,2925.1,2924.0,0.0051296]
[1766770648160,0.17109,2925.1,2923.5,0.12109813]
[1766770649153,0.17109,2925.1,2924.0,0.0051296]
[1766770673677,0.17109,2925.1,2923.5,0.12109813]
[1766770674566,48.201,2925.4,2923.4,3.11758338]
[1766770674567,0.90739475,2924.4,2923.4,2.94640338]
[1766770674873,0.90739475,2924.4,2923.1,0.00265035]
[1766770674874,0.91071981,2924.4,2923.1,0.00265035]
[1766770675671,0.0051296,2924.0,2923.5,0.00341978]
[1766770676072,0.0051296,2924.0,2923.1,0.00265035]
[1766770680267,0.00332506,2924.4,2923.1,0.17385035]
[1766770680965,0.17106,2925.5,2923.6,0.90739475]
[1766770681274,0.17106,2925.5,2923.7,10.11349628]
[1766770681479,0.0051296,2924.8,2924.2,0.00512959]
[1766770681975,0.00898802,2924.8,2924.2,0.00512959]
[1766770682877,0.00898802,2924.8,2923.7,0.17116]
[1766770684982,0.00898802,2924.8,2923.5,6.44805721]
[1766770685183,0.90805721,2924.6,2923.2,5.538]
[1766770685584,0.90805721,2924.6,2923.2,9.97722014]
[1766770686177,0.90805721,2924.3,2923.1,1.65628762]
[1766770686586,0.90805721,2924.3,2923.2,5.54]
[1766770687384,0.90805721,2924.3,2923.1,1.65628762]
[1766770687574,0.90805721,2924.3,2923.1,7.19828762]
[1766770687780,0.90805721,2924.6,2923.1,7.19828762]
[1766770688087,0.90805721,2924.6,2923.2,0.90805721]
[1766770688583,0.18008802,2924.8,2923.2,0.90805721]
[1766770688887,0.00898802,2924.8,2923.5,0.90805721]
[1766770689890,0.91704523,2924.8,2923.2,0.17119]
[1766770690087,0.91704523,2924.8,2923.3,5.546]
[1766770690383,0.91704523,2924.8,2923.2,0.17119]
[1766770690686,0.91704523,2924.8,2923.3,5.546]
[1766770691181,0.91704523,2924.8,2923.2,1.07924721]
[1766770691485,0.91704523,2924.8,2923.3,5.546]
[1766770692281,0.91704523,2924.8,2923.4,5.546]
[1766770692887,0.91704523,2924.8,2923.2,1.07924721]
[1766770693086,0.91704523,2924.8,2923.3,5.546]
[1766770694486,0.91704523,2924.8,2923.4,5.547]
[1766770695880,0.91704523,2924.8,2923.2,1.07924721]
[1766770695881,0.91704523,2924.8,2923.2,0.17119]
[1766770696187,0.91704523,2924.8,2923.3,5.548]
[1766770696383,0.00898802,2924.8,2923.3,6.45605721]
[1766770696689,0.00898802,2924.8,2923.6,0.90805721]
[1766770698083,0.00898802,2924.8,2923.9,0.90805721]
[1766770698980,0.00898802,2924.8,2923.7,1.07921721]
[1766770699480,0.00898802,2924.8,2923.8,4.41221617]
[1766770699788,0.00898802,2924.8,2923.8,5.549]
[1766770699979,0.00898802,2924.8,2923.7,0.17116]
[1766770700184,0.00898802,2924.8,2923.8,5.55]
[1766770700880,0.90805721,2924.7,2923.2,2.94640338]
[1766770701082,0.90805721,2924.7,2923.4,5.55]
[1766770701480,0.00898802,2924.8,2923.4,6.45805721]
[1766770702085,0.00898802,2924.8,2923.6,0.90805721]
[1766770704395,0.00898802,2924.8,2923.8,0.90805721]
[1766770704697,0.17105,2925.6,2924.2,0.90805721]
[1766770705195,0.90805721,2925.9,2924.4,0.90805721]
[1766770705386,0.90805721,2925.5,2924.1,5.551]
[1766770705585,0.0051296,2925.1,2924.5,0.0051296]
[1766770712306,0.90805721,2925.0,2924.5,0.0051296]
[1766770712606,0.0051296,2925.1,2924.5,2.96e-05]
[1766770715814,0.00315293,2925.5,2924.5,2.96e-05]
[1766770716910,0.0051296,2925.3,2924.5,2.96e-05]
[1766770718409,0.0051296,2925.3,2924.6,5.547]
[1766770719505,0.00315293,2925.5,2924.6,6.45505721]
[1766770721615,0.0051296,2925.3,2924.8,0.90805721]
[1766770721915,0.00315293,2925.5,2924.8,0.90805721]
[1766770722812,0.0051296,2925.4,2924.6,6.45505721]
[1766770723414,0.0051296,2925.4,2924.6,0.90805721]
[1766770723614,0.0051296,2925.4,2924.7,5.552]
[1766770725614,0.17096,2927.2,2925.3,1.07912721]
[1766770725816,1.07902721,2927.0,2925.4,5.555]
[1766770726016,0.90805721,2926.5,2925.4,5.555]
[1766770726609,0.0051296,2926.2,2925.7,0.0051296]
[1766770727517,0.0051296,2926.2,2925.7,4.0411296]
[1766770730122,0.0051296,2926.2,2925.7,0.0051296]
[1766770734726,0.90805721,2926.1,2925.4,0.00253389]
[1766770735517,0.90805721,2925.8,2924.6,0.17111]
[1766770735825,0.90805721,2925.8,2924.7,10.01250106]
[1766770736624,0.90805721,2925.8,2925.0,0.0051296]
[1766770737822,0.90805721,2926.1,2925.0,0.0051296]
[1766770738125,0.90805721,2926.1,2925.0,5.5561296]
[1766770740533,0.0051296,2926.2,2925.0,5.5561296]
[1766770740824,0.0051296,2926.2,2925.4,0.90805721]
[1766770741235,0.00346809,2926.5,2925.7,0.90805721]
[1766770741426,0.00346809,2926.5,2925.8,5.551]
[1766770741624,0.90805721,2927.3,2925.8,5.551]
[1766770741823,0.90805721,2927.1,2925.8,5.551]
[1766770742230,0.17093,2927.7,2925.8,5.551]
[1766770742431,0.0051296,2926.9,2925.8,5.551]
[1766770742633,0.00773013,2926.9,2925.8,5.551]
[1766770743132,0.00773013,2926.9,2925.9,5.30327051]
[1766770744631,0.00773013,2926.9,2926.0,5.554]
[1766770750037,0.00773013,2926.9,2925.7,0.4]
[1766770750536,0.00773013,2926.9,2925.8,5.554]
[1766770751934,0.00773013,2926.9,2925.7,0.4]
[1766770758241,0.17099,2926.7,2925.7,0.4]
[1766770758435,0.171,2926.6,2925.0,0.0051296]
[1766770758635,0.171,2926.5,2925.0,0.0051296]
[1766770762042,40.8,2926.4,2925.0,0.0051296]
[1766770762542,0.171,2926.5,2925.0,0.0051296]
[1766770762946,0.17101,2926.4,2925.0,0.0051296]
[1766770763249,40.8,2926.5,2925.0,0.0051296]
[1766770764255,0.17102,2926.2,2925.0,0.0051296]
[1766770771554,40.8,2926.5,2924.7,0.00386684]
[1766770772152,0.17104,2925.9,2924.7,0.00386684]
[1766770773648,0.17104,2925.9,2925.0,2.96e-05]
[1766770790272,0.17104,2925.9,2924.7,0.00386684]
[1766770790666,0.17104,2925.8,2924.7,0.00386684]
[1766770790867,0.9076437,2925.6,2924.3,2.94640338]
[1766770791066,0.0051296,2925.2,2924.7,0.0051296]
[1766770791275,0.0051296,2925.2,2924.3,2.94640338]
[1766770791865,0.0051296,2925.2,2924.3,2.95002707]
[1766770794472,0.0051296,2925.2,2924.3,0.00362369]
[1766770795378,0.9127733,2925.2,2923.8,2.94640338]
[1766770795578,0.9127733,2925.2,2923.7,2.94640338]
[1766770796479,1.0838533,2925.2,2923.7,2.94959592]
[1766770797477,1.0838533,2925.2,2923.7,0.00319254]
[1766770802379,0.9076437,2924.8,2923.7,0.00319254]
[1766770802681,0.9105586,2924.8,2923.7,0.00319254]
[1766770803376,0.9105586,2924.8,2923.2,2.94640338]
[1766770803980,0.9105586,2924.8,2923.1,8.48740338]
[1766770804478,0.9105586,2924.8,2923.1,8.49169348]
[1766770806382,0.0029149,2924.8,2923.3,0.9076437]
[1766770806784,0.0029149,2924.8,2923.4,10.06483163]
[1766770806984,0.0029149,2924.8,2923.7,0.9076437]
[1766770807284,0.0051296,2925.2,2923.8,4.46618234]
[1766770808082,0.0051296,2925.2,2924.0,0.90774173]
[1766770808281,0.00787713,2925.2,2924.1,5.544]
[1766770809887,0.91561886,2925.2,2924.1,5.544]
[1766770810088,0.00787713,2925.2,2924.1,5.544]
[1766770812884,0.00787713,2925.2,2923.6,0.17117]
[1766770813090,0.00787713,2925.2,2923.8,0.90774173]
[1766770813290,0.00787713,2925.2,2923.9,4.47133007]
[1766770813690,0.00787713,2925.2,2923.8,0.90774173]
[1766770814093,0.90774173,2924.8,2923.9,4.45234242]
[1766770814282,0.17895713,2925.2,2923.6,5.544]
[1766770814487,0.90774173,2924.8,2923.6,5.544]
[1766770814688,0.90774173,2924.8,2923.2,4.45234242]
[1766770814887,0.90774173,2924.8,2923.3,5.544]
[1766770815593,0.90774173,2924.8,2923.2,0.90774173]
[1766770815893,0.90774173,2924.8,2923.3,5.544]
[1766770817194,0.90774173,2924.6,2923.3,5.544]
[1766770817395,0.90774173,2924.0,2923.2,5.545]
[1766770817595,0.17112,2924.6,2923.1,0.0042901]
[1766770817596,0.90774173,2924.2,2923.1,0.0042901]
[1766770817796,0.90774173,2924.2,2923.2,5.545]
[1766770818289,0.00787713,2925.2,2923.2,6.45274173]
[1766770818489,0.91561886,2925.2,2923.5,0.90774173]
[1766770818696,0.90774173,2924.9,2923.5,0.90774173]
[1766770818995,0.90774173,2924.9,2923.3,5.549]
[1766770819196,0.90774173,2924.7,2923.4,0.90774173]
[1766770819399,0.90774173,2924.7,2923.5,5.549]
[1766770820497,0.90774173,2924.7,2923.4,0.90774173]
[1766770820797,0.90774173,2924.7,2923.5,5.55]
[1766770821796,0.90774173,2925.0,2923.5,5.55]
[1766770822595,0.17109,2925.1,2923.7,0.90774173]
[1766770824902,0.00787713,2925.2,2924.0,0.90774173]
[1766770826799,0.00787713,2925.2,2924.3,0.90774173]
[1766770827099,0.90774173,2925.9,2924.5,0.90774173]
[1766770827705,0.90774173,2926.2,2924.7,0.90774173]
[1766770827906,0.90774173,2926.0,2924.7,0.90774173]
[1766770828203,0.0051296,2925.6,2925.1,0.0051296]
[1766770828401,0.00381004,2926.0,2925.1,0.0051296]
[1766770829397,0.0051296,2925.8,2925.1,0.0051296]
[1766770830804,0.00381004,2926.0,2925.2,0.90774173]
[1766770831007,0.90774173,2926.8,2925.2,0.91127799]
[1766770831502,0.90774173,2926.6,2925.2,0.91127799]
[1766770831899,0.0051296,2926.2,2925.2,0.91127799]
[1766770832103,0.00909788,2926.2,2925.2,0.91127799]
[1766770834607,0.00909788,2926.2,2925.3,5.544]
[1766770835403,0.00909788,2926.2,2925.2,0.91127799]
[1766770835607,0.00909788,2926.2,2925.3,5.543]
[1766770835804,0.00909788,2926.2,2925.4,0.90774173]
[1766770839708,0.90774173,2926.8,2925.4,0.90774173]
[1766770839915,0.17095,2927.5,2926.5,0.90774173]
[1766770840103,0.05947391,2928.1,2926.5,0.90774173]
[1766770840509,0.05947391,2928.1,2926.3,0.90774173]
[1766770840510,0.90774173,2927.7,2926.3,0.90774173]
[1766770841013,0.0051296,2927.3,2926.7,0.0051296]
[1766770848519,0.00411965,2927.7,2926.7,0.0051296]
[1766770849617,0.0051296,2927.5,2926.7,0.0051296]
[1766770855323,0.00411965,2927.7,2926.7,0.0051296]
[1766770855524,0.1709,2928.2,2926.7,0.0051296]
[1766770856519,0.00339017,2927.7,2926.7,0.0051296]
[1766770864027,0.00339017,2927.7,2926.8,0.90598414]
[1766770864928,0.00339017,2927.7,2926.7,0.0051296]
[1766770865129,0.90598414,2927.6,2926.7,0.0051296]
[1766770866024,0.00339017,2927.7,2926.7,0.0051296]
[1766770867126,0.00339017,2927.7,2926.8,0.90598414]
[1766770869931,0.00339017,2927.7,2926.7,0.0051296]
[1766770876128,0.00249194,2928.2,2926.7,0.0051296]
[1766770876533,0.00249194,2928.2,2926.8,4.39794456]
[1766770880634,0.00249194,2928.2,2926.9,5.518]
[1766770881037,0.00249194,2928.2,2926.7,0.1761196]
[1766770881334,0.00249194,2928.2,2926.8,8.21957352]
[1766770881526,0.00249194,2928.2,2926.8,4.47657352]
[1766770881726,0.17340194,2928.2,2926.7,0.0051296]
[1766770881931,0.17340194,2928.2,2926.8,5.518]
[1766770882438,0.17340194,2928.2,2926.7,0.0051296]
[1766770882633,0.17340194,2928.2,2926.7,5.5231296]
[1766770884039,0.17340194,2928.2,2926.8,4.37934179]
[1766770887043,0.17340194,2928.2,2926.9,5.517]
[1766770887742,0.17340194,2928.2,2926.8,5.517]
[1766770890547,0.00249194,2928.2,2927.0,0.90607567]
[1766770890837,0.17084,2929.2,2927.2,0.17096]
[1766770891143,0.90607567,2929.1,2927.3,5.515]
[1766770891637,0.90999628,2929.1,2927.3,5.51873927]
[1766770892235,0.17086,2928.9,2927.4,5.515]
[1766770894441,0.17087,2928.8,2927.3,0.00373927]
[1766770894641,0.17087,2928.8,2927.3,5.51673927]
[1766770895044,0.17087,2928.8,2927.3,0.00373927]
[1766770895244,0.17087,2928.8,2927.3,5.51673927]
[1766770897549,0.17087,2928.8,2927.3,0.00373927]
[1766770897847,0.17087,2928.8,2927.3,5.51573927]
[1766770899952,0.17088,2928.7,2927.3,0.00373927]
[1766770907460,0.00392061,2929.1,2927.3,0.00373927]
[1766770907461,0.17089,2928.5,2927.3,0.00373927]
[1766770910065,0.17089,2928.4,2927.3,0.00373927]
[1766770914960,0.90607567,2928.0,2926.7,0.0051296]
[1766770915768,0.17091,2928.1,2926.7,0.0051296]
[1766770916069,0.17091,2928.1,2926.7,0.0088411]
[1766770917669,1.07699567,2928.0,2926.7,0.0088411]
[1766770917872,0.17092,2927.9,2926.7,0.0088411]
[1766770918562,40.97092,2927.9,2926.7,0.0088411]
[1766770920071,1.07696567,2928.4,2926.7,0.0088411]
[1766770920263,0.17089,2928.4,2926.7,0.0088411]
[1766770920768,40.97089,2928.4,2926.7,0.0088411]
[1766770921155,0.17089,2928.4,2926.7,0.0088411]
[1766770921362,0.17477061,2929.1,2927.2,0.90607567]
[1766770921562,40.8,2929.0,2927.3,5.521]
[1766770924165,0.17086,2928.9,2927.0,0.17097]
[1766770924371,0.17086,2928.9,2927.4,5.52]
[1766770925172,0.17086,2928.9,2927.0,0.17097]
[1766770925472,0.17086,2928.9,2927.1,8.3288314]
[1766770928272,0.17086,2928.9,2927.2,5.518]
[1766770929269,0.17086,2928.9,2927.3,5.518]
[1766770930073,0.17086,2928.9,2927.3,5.517]
[1766770931161,40.8,2928.8,2927.3,5.516]
[1766770931975,0.90578561,2928.5,2927.3,5.516]
[1766770933573,0.90578561,2928.2,2926.7,0.0088411]
[1766770933771,0.90578561,2928.2,2927.0,5.515]
[1766770934169,0.17088,2928.6,2927.5,0.90578561]
[1766770935069,41.70578561,2928.9,2927.5,0.90578561]
[1766770935377,0.90578561,2928.9,2927.5,0.90578561]
[1766770938476,0.90578561,2928.7,2927.3,0.90578561]
[1766770938971,0.90578561,2928.5,2927.1,4.43664192]
[1766770939168,0.90578561,2928.5,2927.1,5.514]
[1766770940274,0.90578561,2928.5,2927.1,6.41978561]
[1766770940967,0.90578561,2928.5,2927.1,5.514]
[1766770941179,0.90578561,2928.5,2927.2,5.514]
[1766770941678,0.90578561,2928.5,2927.2,6.41978561]
[1766770941978,1.07665561,2928.8,2927.2,6.41978561]
[1766770949077,1.07665561,2928.8,2927.4,2.42250919]
[1766770949271,1.07665561,2928.8,2927.5,2.42250919]
[1766770951478,0.90578561,2928.7,2927.5,2.42250919]
[1766770955800,0.17087,2928.8,2927.5,2.42250919]
[1766770955986,0.90578561,2928.6,2927.5,2.42250919]
[1766770962191,0.90578561,2928.6,2927.6,2.42250919]
[1766770962490,0.90578561,2928.6,2927.5,2.42250919]
[1766770963090,0.90578561,2928.6,2927.6,2.42250919]
[1766770964094,0.00392061,2929.1,2928.1,0.90578561]
[1766770964291,0.00392061,2929.1,2928.3,0.0051296]
[1766770965689,0.00392061,2929.1,2928.4,0.90578561]
[1766770966097,0.00392061,2929.1,2928.3,0.0051296]
[1766770966297,0.00392061,2929.1,2928.4,5.514]
[1766770967200,0.90578561,2929.6,2928.4,5.514]
[1766770967396,0.90578561,2929.4,2928.4,5.514]
[1766770968002,0.90578561,2928.9,2928.3,0.0051296]
[1766770968302,0.00304853,2928.9,2928.3,0.0051296]
[1766770968491,0.59818561,2928.8,2928.3,0.0051296]
[1766770969092,0.00304853,2928.9,2928.3,0.0051296]
[1766770970602,0.17084,2929.4,2928.3,0.0051296]
[1766770970905,0.90578561,2929.3,2928.3,0.0051296]
[1766770971096,0.17084,2929.4,2928.3,0.0051296]
[1766770971097,0.90578561,2929.0,2928.3,0.0051296]
[1766770971298,0.90578561,2929.3,2928.3,0.0051296]
[1766770971498,0.90831089,2929.3,2928.3,0.0051296]
[1766770973002,0.00252528,2929.3,2928.3,0.0051296]
[1766770973205,0.90831089,2929.3,2928.3,0.0051296]
[1766770977003,0.90578561,2929.1,2928.3,0.0051296]
[1766770978907,0.90578561,2929.2,2928.3,0.0051296]
[1766770979306,0.90578561,2929.0,2928.3,0.0051296]
[1766770980411,0.90578561,2928.8,2928.3,0.0051296]
[1766770981711,0.90578561,2928.8,2927.6,2.42750758]
[1766770981712,0.90578561,2928.5,2927.6,2.42750758]
[1766770982008,0.90578561,2928.2,2927.2,2.42750758]
[1766770982214,0.90578561,2928.2,2927.5,5.515]
[1766770982416,0.17087,2928.7,2927.5,5.515]
[1766770982417,0.90578561,2928.4,2927.5,5.515]
[1766770982613,0.90578561,2928.4,2927.7,0.0051296]
[1766770983018,0.00512959,2928.8,2927.7,0.0051296]
[1766770983815,0.00512959,2928.8,2927.8,5.40966537]
[1766770984013,0.00512959,2928.8,2927.8,4.50387976]
[1766770984211,0.90578561,2928.6,2927.7,0.0051296]
[1766770984515,0.90578561,2928.6,2927.8,5.515]
[1766770985307,0.00512959,2928.8,2927.8,5.515]
[1766770985708,0.90578561,2928.6,2927.8,5.515]
[1766770985905,0.90578561,2928.6,2927.7,0.0051296]
[1766770986110,0.90578561,2928.0,2927.4,5.515]
[1766770986312,0.90578561,2928.0,2926.9,2.59848758]
[1766770986514,0.17088,2928.7,2927.0,5.515]
[1766770986720,0.90578561,2928.0,2927.0,5.515]
[1766770987215,0.90578561,2927.8,2927.2,0.0051296]
[1766770988912,0.90578561,2928.0,2927.2,0.0051296]
[1766770989417,0.90578561,2928.2,2927.2,0.0051296]
[1766770990622,0.17089,2928.4,2927.2,0.0051296]
[1766770990815,0.90578561,2928.3,2927.2,0.0051296]
[1766770991220,0.90578561,2928.1,2927.2,0.0051296]
[1766770991718,0.90578561,2927.6,2926.8,1.47313288]
[1766770991915,0.90578561,2927.8,2926.8,6.99613288]
[1766770992813,0.90578561,2927.8,2927.0,0.0051296]
[1766770994022,0.90622211,2928.2,2927.0,0.0051296]
[1766770994616,0.1709,2928.3,2927.0,0.0051296]
[1766770995011,40.8,2928.7,2927.0,0.0051296]
[1766770995210,0.00512959,2928.8,2927.0,0.0051296]
[1766770995608,0.00512959,2928.8,2927.1,4.43612017]
[1766770996519,0.90622211,2928.6,2927.0,0.1760996]
[1766770997222,0.90622211,2928.6,2927.0,0.0051296]
[1766770997522,1.07710211,2928.6,2927.0,0.0051296]
[1766771002421,0.90622211,2928.2,2927.0,0.0051296]
[1766771003120,0.90622211,2928.3,2927.0,0.0051296]
[1766771003516,1.07712211,2928.3,2927.0,0.0051296]
[1766771004825,0.1709,2928.2,2927.0,0.0051296]
[1766771008726,0.90622211,2927.9,2927.0,0.0051296]
[1766771010230,1.07714211,2927.9,2927.0,0.0051296]
[1766771011431,1.07711211,2928.4,2927.0,0.0051296]
[1766771011626,0.1709,2928.3,2927.0,0.0051296]
[1766771013428,0.17091,2928.1,2927.0,0.0051296]
[1766771013632,7.922,2928.6,2926.4,3.92539827]
[1766771013633,0.90622211,2927.5,2926.4,1.49789069]
[1766771013832,1.07717211,2927.5,2925.8,2.42750758]
[1766771014332,1.07717211,2927.5,2925.9,4.4052647]
[1766771014520,0.0051296,2927.0,2926.4,0.0051296]
[1766771014720,0.00812731,2927.0,2925.9,0.00380486]
[1766771015841,0.00812731,2927.0,2926.2,0.0051296]
[1766771017932,0.00812731,2927.0,2925.9,0.00380486]
[1766771018131,0.90622211,2926.7,2925.1,2.42750758]
[1766771018524,0.90622211,2926.7,2925.3,4.45558856]
[1766771018933,0.90622211,2926.7,2925.7,0.00341978]
[1766771019230,0.90622211,2926.7,2924.9,7.18423738]
[1766771019636,0.90622211,2926.7,2925.0,4.36854948]
[1766771019933,0.17098,2926.8,2925.0,4.36854948]
[1766771020334,0.17098,2926.8,2925.0,4.3723523]
[1766771021124,0.171,2926.6,2925.0,4.3723523]
[1766771021330,0.17101,2926.4,2925.0,0.00380282]
[1766771028238,7.948,2926.3,2925.0,0.00380282]
[1766771028534,0.17101,2926.4,2925.0,0.00380282]
[1766771028734,7.95,2926.3,2925.0,0.00380282]
[1766771034841,0.17101,2926.4,2925.0,0.00380282]
[1766771035041,7.951,2926.3,2925.0,0.00380282]
[1766771035239,0.17101,2926.4,2925.0,0.00380282]
[1766771035639,40.8,2926.9,2925.1,4.41205711]
[1766771035838,7.954,2926.8,2925.1,4.41205711]
[1766771036043,7.957,2926.7,2925.1,4.41205711]
[1766771040048,0.9073097,2926.5,2925.1,4.41205711]
[1766771040749,0.9073097,2926.5,2925.0,0.17489282]
[1766771041249,0.9073097,2926.1,2925.0,0.00380282]
[1766771041449,7.992,2926.0,2925.0,0.00380282]
[1766771045042,7.992,2926.0,2924.5,57.83681092]
[1766771045354,0.9073097,2926.1,2924.6,2.42750758]
[1766771045554,7.991,2926.0,2924.6,2.42750758]
[1766771046052,7.991,2926.0,2924.6,2.43121499]
[1766771047157,7.991,2926.0,2924.7,2.42750758]
[1766771047955,7.991,2926.0,2924.6,2.43121499]
[1766771048850,7.991,2926.0,2924.7,2.42750758]
[1766771052555,7.98,2926.1,2924.7,2.42750758]
[1766771054061,0.90746072,2925.8,2924.7,2.42750758]
[1766771056257,0.90746072,2925.8,2924.8,2.42750758]
[1766771056562,0.0051296,2925.6,2924.8,2.42750758]
[1766771069381,0.0051296,2925.6,2924.9,2.42750758]
[1766771070972,2.96e-05,2925.6,2924.9,2.42750758]
[1766771072278,2.96e-05,2925.6,2925.0,0.0051]
[1766771080885,0.90746072,2925.2,2924.6,2.44072708]
[1766771081181,0.90746072,2925.2,2924.6,0.00370741]
[1766771081573,0.90746072,2925.4,2924.6,0.00370741]
[1766771084283,0.90746072,2925.2,2924.6,0.00370741]
[1766771085879,0.90746072,2925.3,2924.6,0.00370741]
[1766771086380,0.90746072,2925.5,2924.6,0.00370741]
[1766771089883,2.96e-05,2925.6,2924.6,0.00370741]
[1766771094784,0.90746072,2925.5,2924.6,0.00370741]
[1766771095386,2.96e-05,2925.6,2924.6,0.00370741]
[1766771097489,2.96e-05,2925.6,2924.6,0.91116813]
[1766771098080,0.90746072,2925.2,2924.6,0.00370741]
[1766771098687,0.90746072,2925.4,2924.6,0.00370741]
[1766771099790,0.90749032,2925.6,2924.6,0.00370741]
[1766771102189,0.90746072,2925.1,2924.6,0.00370741]
[1766771102487,0.90746072,2924.8,2923.9,11.86734665]
[1766771102692,0.90746072,2924.8,2923.5,3.24050697]
[1766771102893,0.90746072,2924.8,2923.5,0.29410359]
[1766771103092,0.90746072,2924.8,2923.6,4.53307186]
[1766771103285,0.91116964,2924.8,2923.6,4.53556253]
[1766771103992,0.91116964,2924.8,2923.6,0.00249067]
[1766771106290,0.00370892,2924.8,2923.6,0.00249067]
[1766771106491,0.91116964,2924.8,2923.6,0.00249067]
[1766771108201,0.00370892,2924.8,2923.6,0.90995139]
[1766771108388,0.00370892,2924.8,2923.8,0.90746072]
[1766771109792,0.00370892,2924.8,2923.6,0.90995139]
[1766771109996,0.00370892,2924.8,2923.6,0.00249067]
[1766771110292,0.91116964,2924.8,2923.6,0.00249067]
[1766771110593,0.00370892,2924.8,2923.6,0.00249067]
[1766771110894,0.91116964,2924.8,2923.6,0.00249067]
[1766771111691,0.00370892,2924.8,2923.9,0.90746072]
[1766771113797,0.00370892,2924.8,2923.7,0.90746072]
[1766771115996,0.00370892,2924.8,2923.6,0.00249067]
[1766771138308,0.00370892,2924.8,2923.1,1.47928256]
[1766771138507,0.00370892,2924.8,2923.0,2.94640338]
[1766771139311,0.90796971,2924.6,2923.0,2.94894871]
[1766771139510,0.0051296,2924.1,2923.0,2.94894871]
[1766771141015,0.0051296,2924.1,2923.0,0.00254533]
[1766771158742,0.0051296,2924.1,2923.1,4.43205631]
[1766771158942,0.00370892,2924.8,2923.3,0.17119]
[1766771160042,0.0051296,2924.3,2923.8,0.00512959]
[1766771160245,0.00370892,2924.8,2923.8,0.00512959]
[1766771161144,0.0051296,2924.6,2923.8,0.00512959]
[1766771162043,0.00370892,2924.8,2923.8,0.00512959]
[1766771162246,8.08604,2925.9,2923.9,4.68609823]
[1766771162646,0.05950676,2926.4,2924.1,0.90796971]
[1766771162837,0.171,2926.5,2924.3,0.17113]
[1766771163039,0.0051296,2925.7,2924.3,0.17113]
[1766771163242,0.0051296,2925.7,2924.4,4.4161484]
[1766771163442,0.0087056,2925.7,2924.4,4.4161484]
[1766771170950,0.0087056,2925.7,2924.4,4.5872684]
[1766771171148,0.0087056,2925.7,2924.5,0.17111]
[1766771171350,0.0087056,2925.7,2924.5,6.92807971]
[1766771171751,0.0087056,2925.7,2924.5,6.02011]
[1766771174651,0.0087056,2925.7,2924.5,5.849]
[1766771176955,0.0087056,2925.7,2924.0,0.17115]
[1766771177160,0.0087056,2925.7,2924.1,5.848]
[1766771177355,0.0087056,2925.7,2924.2,4.36760577]
[1766771177550,0.0087056,2925.7,2924.1,10.21560577]
[1766771177749,0.0087056,2925.7,2924.1,5.848]
[1766771177951,0.91629196,2925.7,2924.3,0.90758636]
[1766771178647,0.0087056,2925.7,2924.8,0.90758636]
[1766771179756,0.0087056,2925.7,2924.6,0.90758636]
[1766771182557,0.0087056,2925.7,2924.8,0.90758636]
[1766771183755,0.0087056,2925.7,2924.4,1.07870636]
[1766771184259,0.0087056,2925.7,2924.6,0.90758636]
[1766771184757,0.0087056,2925.7,2924.5,5.36332401]
[1766771184958,0.0087056,2925.7,2924.5,0.90758636]
[1766771186359,0.91629196,2925.7,2924.4,0.17112]
[1766771186858,0.0087056,2925.7,2924.5,0.90758636]
[1766771189255,0.91629196,2925.7,2924.4,1.07870636]
[1766771189856,0.0087056,2925.7,2924.4,1.07870636]
[1766771194261,0.0087056,2925.7,2924.6,0.90758636]
[1766771198869,0.0087056,2925.7,2924.4,1.07870636]
[1766771199166,0.0087056,2925.7,2924.4,0.17112]
[1766771203379,0.0087056,2925.7,2924.6,0.90758636]
[1766771203575,0.0087056,2925.7,2924.9,0.90758636]
[1766771203879,41.70758636,2926.5,2925.1,0.90758636]
[1766771204379,0.90758636,2926.5,2925.1,0.90758636]
[1766771204877,0.90758636,2926.3,2925.5,0.0051296]
[1766771205180,0.0051296,2926.1,2925.5,0.0051296]
[1766771207583,0.00338303,2926.5,2925.6,0.90758636]
[1766771208683,0.0051296,2926.3,2925.6,0.90758636]
[1766771210986,0.90758636,2927.2,2925.8,0.90758636]
[1766771211978,0.00341978,2926.8,2925.8,0.90758636]
[1766771212482,0.00341978,2926.8,2925.5,0.1761896]
[1766771212483,0.90758636,2926.7,2925.5,0.0051296]
[1766771212787,0.00341978,2926.8,2925.6,0.90758636]
[1766771213188,0.00341978,2926.8,2925.5,0.0051296]
[1766771216093,0.00341978,2926.8,2925.8,0.90758636]
[1766771218195,0.00356833,2927.2,2925.9,4.50381791]
[1766771218395,0.91115469,2927.2,2925.9,4.50381791]
[1766771218596,0.90758636,2927.0,2925.7,5.84]
[1766771218791,0.90758636,2926.8,2925.5,5.8451296]
[1766771218995,0.90758636,2926.6,2925.5,0.0051296]
[1766771221294,0.90758636,2926.3,2925.5,0.0051296]
[1766771224398,0.90758636,2926.2,2925.5,0.0051296]
[1766771225201,0.90758636,2925.9,2925.1,0.00425199]
[1766771225401,0.90758636,2926.1,2925.1,0.00425199]
[1766771226001,0.00512959,2925.9,2925.3,0.0051296]
[1766771226597,0.00512959,2925.9,2925.3,0.91271596]
[1766771226796,0.00512959,2925.9,2925.3,0.0051296]
[1766771233005,0.90758636,2925.7,2925.3,0.0051296]
[1766771233210,0.91271595,2925.9,2925.1,0.00425199]
[1766771233416,0.00512959,2925.9,2925.1,0.00425199]
[1766771234108,0.00512959,2925.9,2925.2,0.0051296]
[1766771238316,0.9072898,2927.0,2925.2,0.0051296]
[1766771238509,0.17097,2927.1,2925.3,4.50987185]
[1766771238815,0.00356833,2927.2,2925.4,5.825]
[1766771239312,0.0051296,2926.6,2925.5,4.50987185]
[1766771242913,0.0051296,2926.6,2925.5,5.83]
[1766771243105,0.0051296,2926.6,2925.3,0.17107]
[1766771245317,0.0051296,2926.6,2925.2,0.0051296]
[1766771248112,0.9072898,2926.2,2925.2,0.0051296]
[1766771248819,0.9072898,2926.2,2925.1,0.00425199]
[1766771249813,0.9072898,2926.2,2925.4,0.0051296]
[1766771250315,1.0783098,2926.2,2925.1,0.00425199]
[1766771250906,0.9072898,2926.2,2924.2,3.11753338]
[1766771251111,0.9072898,2926.2,2924.2,5.99713]
[1766771251320,0.9072898,2926.2,2924.9,0.0051296]
[1766771252014,0.9072898,2926.2,2924.9,0.00865485]
[1766771252319,0.9072898,2925.8,2924.2,5.99713]
[1766771252916,0.17104,2925.9,2924.2,5.99713]
[1766771253519,0.17104,2925.9,2924.8,0.0051296]